bitfinex-derivatives/quotes_BTCF0:USTF0_20250911
["timestamp","ask_amount","ask_price","bid_price","bid_amount"]
[1757582071952,0.39858,113980.0,113970.0,0.14516422]
[1757582072154,1.19846,113980.0,113970.0,0.14516422]
[1757582072461,1.19846,113980.0,113970.0,0.25518224]
[1757582072762,0.39858,113980.0,113970.0,0.39234646]
[1757582073052,1.19838,113980.0,113970.0,0.39234646]
[1757582074559,0.39858,113980.0,113970.0,0.39234646]
[1757582074766,1.56018,113980.0,113970.0,0.39234646]
[1757582075161,0.76038,113980.0,113970.0,0.39234646]
[1757582075463,1.56002,113980.0,113970.0,0.39234646]
[1757582075959,1.19822,113980.0,113970.0,0.36113317]
[1757582076362,1.19822,113980.0,113970.0,0.28232844]
[1757582076755,1.1981,113980.0,113970.0,0.47115444]
[1757582076955,1.1981,113980.0,113970.0,0.39234646]
[1757582077353,0.39858,113980.0,113970.0,0.48006866]
[1757582077659,1.17537,113980.0,113970.0,0.73006866]
[1757582078049,1.17537,113980.0,113970.0,0.80888495]
[1757582078253,1.17537,113980.0,113970.0,0.73006866]
[1757582078563,1.17533,113980.0,113970.0,0.69887747]
[1757582078756,1.17529,113980.0,113970.0,0.69887747]
[1757582079261,1.17529,113980.0,113970.0,0.37005064]
[1757582079262,1.19802,113980.0,113970.0,0.37005064]
[1757582080464,1.19802,113980.0,113970.0,0.48006866]
[1757582081367,1.19802,113980.0,113970.0,0.11801802]
[1757582081571,1.19802,113980.0,113970.0,0.39234646]
[1757582081771,0.39858,113980.0,113970.0,0.39234646]
[1757582081964,1.19802,113980.0,113970.0,0.28232844]
[1757582082161,1.19802,113980.0,113970.0,0.008]
[1757582082366,1.19802,113980.0,113970.0,0.28232844]
[1757582083270,1.19802,113980.0,113970.0,0.008]
[1757582083662,1.19802,113980.0,113970.0,0.28232844]
[1757582084665,0.39858,113980.0,113970.0,0.51280986]
[1757582084972,1.17529,113980.0,113970.0,1.24280986]
[1757582085175,1.17529,113980.0,113970.0,1.13232844]
[1757582085473,1.17529,113980.0,113970.0,1.24281043]
[1757582086974,0.37585,113980.0,113970.0,1.24281043]
[1757582087173,1.17529,113980.0,113970.0,1.24281043]
[1757582087774,1.17529,113980.0,113970.0,1.13232844]
[1757582088874,1.17529,113980.0,113970.0,1.2901071]
[1757582089071,0.81449,113980.0,113970.0,1.2901071]
[1757582089271,1.17529,113980.0,113970.0,1.2901071]
[1757582089572,1.16103074,113980.0,113970.0,1.2901071]
[1757582089771,1.19681074,113980.0,113970.0,0.89775844]
[1757582090579,1.55861074,113980.0,113970.0,0.89775844]
[1757582090773,1.94577496,113980.0,113970.0,0.16059422]
[1757582090981,1.80861074,113980.0,113970.0,0.02343]
[1757582091484,1.80861074,113980.0,113970.0,0.16059422]
[1757582092779,1.44681074,113980.0,113970.0,0.16059422]
[1757582092972,1.80861074,113980.0,113970.0,0.16059422]
[1757582093169,1.80861074,113980.0,113970.0,0.27109077]
[1757582093580,1.80861074,113980.0,113970.0,0.02343]
[1757582093879,1.80861074,113980.0,113970.0,0.27109162]
[1757582097083,1.00917074,113980.0,113970.0,0.27109162]
[1757582097384,1.80857074,113980.0,113970.0,0.27109162]
[1757582098483,1.80857074,113980.0,113970.0,0.1184974]
[1757582098484,1.28349918,113980.0,113970.0,0.1184974]
[1757582098673,1.28349918,113980.0,113970.0,0.0764974]
[1757582098674,2.08289918,113980.0,113970.0,0.0764974]
[1757582098875,2.08289918,113980.0,113970.0,0.15543911]
[1757582099077,2.08289918,113980.0,113970.0,0.07894171]
[1757582099276,1.28349918,113980.0,113970.0,0.07894171]
[1757582099583,2.08289918,113980.0,113970.0,0.07894171]
[1757582099784,2.08289918,113980.0,113970.0,0.21610593]
[1757582100081,2.08289918,113980.0,113970.0,0.07894171]
[1757582100485,0.03505,113970.0,113960.0,0.15931422]
[1757582100683,0.89481422,113970.0,113960.0,0.15931422]
[1757582101784,0.89581422,113970.0,113960.0,0.16131422]
[1757582102178,0.89581422,113970.0,113960.0,0.13916422]
[1757582102583,0.89681422,113970.0,113960.0,0.13916422]
[1757582103089,0.89681422,113970.0,113960.0,0.16131422]
[1757582103283,0.89681422,113970.0,113960.0,0.24013404]
[1757582103483,0.89681422,113970.0,113960.0,0.08081982]
[1757582103683,0.89681422,113970.0,113960.0,0.21798404]
[1757582104286,1.69625422,113970.0,113960.0,0.24013404]
[1757582104891,0.89681422,113970.0,113960.0,0.24013404]
[1757582105093,1.69625422,113970.0,113960.0,0.24013404]
[1757582105794,1.69629422,113970.0,113960.0,0.10296982]
[1757582105982,1.69629422,113970.0,113960.0,0.24013404]
[1757582106286,1.69629422,113970.0,113960.0,0.10296982]
[1757582106491,1.69629422,113970.0,113960.0,0.24013404]
[1757582107887,0.89681422,113970.0,113960.0,0.24013404]
[1757582108089,1.69629422,113970.0,113960.0,0.24013404]
[1757582110087,1.69629422,113970.0,113960.0,0.10296982]
[1757582110292,1.69629422,113970.0,113960.0,0.24013404]
[1757582111493,1.55913,113970.0,113960.0,0.16131422]
[1757582111688,1.69629422,113970.0,113960.0,0.16131422]
[1757582112389,1.65062821,113970.0,113960.0,0.11564821]
[1757582112585,1.55913,113970.0,113960.0,0.11564821]
[1757582112785,0.85114821,113970.0,113960.0,0.11564821]
[1757582112990,1.55913,113970.0,113960.0,0.02415]
[1757582113291,1.65062821,113970.0,113960.0,0.10296982]
[1757582113486,1.65062821,113970.0,113960.0,0.19446803]
[1757582113693,1.65062821,113970.0,113960.0,0.10296982]
[1757582113995,1.65062821,113970.0,113960.0,0.19446803]
[1757582114191,1.55913,113970.0,113960.0,0.19446803]
[1757582115196,0.75965,113970.0,113960.0,0.19446803]
[1757582115397,1.55913,113970.0,113960.0,0.19446803]
[1757582116198,0.75965,113970.0,113960.0,0.19446803]
[1757582116398,1.55913,113970.0,113960.0,0.19446803]
[1757582117288,0.75965,113970.0,113960.0,0.19446803]
[1757582117595,1.18388,113970.0,113960.0,0.54560624]
[1757582117792,1.18388,113970.0,113960.0,0.46678642]
[1757582117992,1.18388,113970.0,113960.0,0.57707436]
[1757582119795,1.19733,113970.0,113960.0,0.57707436]
[1757582120395,0.39785,113970.0,113960.0,0.57707436]
[1757582120590,1.19729,113970.0,113960.0,0.57707436]
[1757582121401,1.18384,113970.0,113960.0,0.46678642]
[1757582122304,0.3844,113970.0,113960.0,0.46678642]
[1757582122498,1.18384,113970.0,113960.0,0.46678642]
[1757582122896,1.18384,113970.0,113960.0,0.57711587]
[1757582123297,1.18384,113970.0,113960.0,0.46678642]
[1757582124397,0.82304,113970.0,113960.0,0.46678642]
[1757582124599,0.8014,113970.0,113960.0,1.32908463]
[1757582124798,0.8014,113970.0,113960.0,1.41681123]
[1757582125200,0.8014,113970.0,113960.0,1.1423166]
[1757582125598,0.8014,113970.0,113960.0,1.41681123]
[1757582125995,0.8014,113970.0,113960.0,1.57458989]
[1757582126999,0.8014,113970.0,113960.0,1.59341782]
[1757582127506,0.8014,113970.0,113960.0,1.43563916]
[1757582127907,0.8014,113970.0,113960.0,1.52713737]
[1757582128799,0.80136,113970.0,113960.0,1.52713737]
[1757582129303,0.002,113970.0,113960.0,1.52713737]
[1757582129504,25.1103,113980.0,113970.0,0.03368]
[1757582129706,25.90962,113980.0,113970.0,1.38930077]
[1757582129907,25.90962,113980.0,113970.0,1.29780256]
[1757582130108,25.90962,113980.0,113970.0,1.38552186]
[1757582130305,25.90962,113980.0,113970.0,1.55577918]
[1757582130507,25.90962,113980.0,113970.0,1.44545304]
[1757582131005,25.91062,113980.0,113970.0,1.27619572]
[1757582131201,24.56514793,113980.0,113970.0,1.61869393]
[1757582132712,24.01799586,113980.0,113970.0,1.61869393]
[1757582133018,24.01799586,113980.0,113970.0,1.62760488]
[1757582133203,24.01799586,113980.0,113970.0,1.78538354]
[1757582133807,23.30502385,113980.0,113970.0,1.78538354]
[1757582134310,23.30502385,113980.0,113970.0,2.58462354]
[1757582135217,23.30502385,113980.0,113970.0,2.49312533]
[1757582135619,23.30502385,113980.0,113970.0,2.33534667]
[1757582136710,23.27002385,113980.0,113970.0,2.33534667]
[1757582137822,23.23502385,113980.0,113970.0,2.4230852]
[1757582139412,23.23502385,113980.0,113970.0,2.1730852]
[1757582139617,23.10765385,113980.0,113970.0,2.4114152]
[1757582139824,23.09339727,113980.0,113970.0,2.54223216]
[1757582140021,23.05839727,113980.0,113970.0,2.63373037]
[1757582140517,23.05839727,113980.0,113970.0,1.90077082]
[1757582140721,23.05839727,113980.0,113970.0,1.20915803]
[1757582140722,23.51169548,113980.0,113970.0,1.20915803]
[1757582140920,24.33378548,113980.0,113970.0,1.09916595]
[1757582141119,24.24228727,113980.0,113970.0,1.19066416]
[1757582141321,24.24228727,113980.0,113970.0,1.0328855]
[1757582142518,24.24228727,113980.0,113970.0,0.95429821]
[1757582142821,24.24228727,113980.0,113970.0,0.97281113]
[1757582143023,24.24228727,113980.0,113970.0,1.06430934]
[1757582145926,24.24228727,113980.0,113970.0,0.97281113]
[1757582146124,24.24228727,113980.0,113970.0,1.06430934]
[1757582146326,1.19852,113980.0,113970.0,1.06430934]
[1757582147026,1.19852,113980.0,113970.0,0.97281113]
[1757582147325,1.19852,113980.0,113970.0,1.06430934]
[1757582147625,1.19852,113980.0,113970.0,0.95429821]
[1757582147829,1.19852,113980.0,113970.0,0.8628]
[1757582148126,1.19852,113980.0,113970.0,1.06447409]
[1757582149829,1.19852,113980.0,113970.0,0.97297588]
[1757582150029,1.19852,113980.0,113970.0,1.06447409]
[1757582150431,1.55932,113980.0,113970.0,0.70367409]
[1757582150928,1.19852,113980.0,113970.0,0.70367409]
[1757582152834,0.83672,113980.0,113970.0,0.70367409]
[1757582153029,1.19852,113980.0,113970.0,0.59349821]
[1757582153529,1.63151642,113980.0,113970.0,0.5807777]
[1757582153736,1.63151642,113980.0,113970.0,0.2307777]
[1757582153933,1.54001821,113980.0,113970.0,0.2307777]
[1757582154134,1.99231642,113980.0,113970.0,0.2307777]
[1757582155427,1.99231642,113980.0,113970.0,0.152]
[1757582155633,1.99231642,113980.0,113970.0,0.26228766]
[1757582156337,1.99231642,113980.0,113970.0,0.152]
[1757582156838,1.99231642,113980.0,113970.0,0.002]
[1757582157736,1.99231642,113980.0,113970.0,0.08078615]
[1757582158732,1.19319642,113980.0,113970.0,0.08078615]
[1757582159139,1.99223642,113980.0,113970.0,0.08078615]
[1757582159735,1.0102,113980.0,113970.0,0.08078615]
[1757582159940,1.65073821,113980.0,113970.0,0.08078615]
[1757582160138,1.65073821,113980.0,113970.0,0.002]
[1757582160331,1.65073821,113980.0,113970.0,0.08076405]
[1757582160527,0.7602,113980.0,113970.0,0.08076405]
[1757582160738,1.65073821,113980.0,113970.0,0.08076405]
[1757582162241,1.65073821,113980.0,113970.0,0.002]
[1757582164040,0.85169821,113980.0,113970.0,0.002]
[1757582164338,1.65073821,113980.0,113970.0,0.002]
[1757582165530,0.85169821,113980.0,113970.0,0.002]
[1757582165737,1.65073821,113980.0,113970.0,0.002]
[1757582166241,1.65073821,113980.0,113970.0,0.08075513]
[1757582166440,1.65073821,113980.0,113970.0,0.002]
[1757582166642,1.65073821,113980.0,113970.0,0.08076352]
[1757582167730,0.85169821,113980.0,113970.0,0.08076352]
[1757582167934,1.65073821,113980.0,113970.0,0.08076352]
[1757582168535,1.65073821,113980.0,113970.0,0.002]
[1757582168841,1.65073821,113980.0,113970.0,0.11228766]
[1757582169141,0.85169821,113980.0,113970.0,0.11228766]
[1757582169539,1.65073821,113980.0,113970.0,0.11228766]
[1757582169733,1.65073821,113980.0,113970.0,0.002]
[1757582170042,1.65073821,113980.0,113970.0,0.11228766]
[1757582170442,1.74223642,113980.0,113970.0,0.002]
[1757582171044,1.65073821,113980.0,113970.0,0.002]
[1757582171744,1.65073821,113980.0,113970.0,0.11228766]
[1757582172742,0.85169821,113980.0,113970.0,0.11228766]
[1757582172945,1.55924,113980.0,113970.0,0.11228766]
[1757582173151,1.65073821,113980.0,113970.0,0.11228766]
[1757582173446,1.55924,113980.0,113970.0,0.11228766]
[1757582173648,1.65073821,113980.0,113970.0,0.002]
[1757582174547,1.83367338,113980.0,113970.0,0.24950435]
[1757582174846,1.83367338,113980.0,113970.0,0.13921669]
[1757582175146,1.83367338,113980.0,113970.0,0.002]
[1757582175345,1.83367338,113980.0,113970.0,0.24950435]
[1757582176534,1.55924,113980.0,113970.0,0.24950435]
[1757582176738,1.83367338,113980.0,113970.0,0.24950435]
[1757582177942,1.83367338,113980.0,113970.0,0.11228766]
[1757582180645,1.83367338,113980.0,113970.0,0.24950435]
[1757582182250,1.83367338,113980.0,113970.0,0.11228766]
[1757582182547,1.83367338,113980.0,113970.0,0.13921669]
[1757582182749,1.47187338,113980.0,113970.0,0.24971062]
[1757582182949,1.83367338,113980.0,113970.0,0.24971062]
[1757582183139,1.83367338,113980.0,113970.0,0.13921669]
[1757582183343,1.83367338,113980.0,113970.0,0.002]
[1757582184453,1.55924,113980.0,113970.0,0.002]
[1757582184648,1.83367338,113980.0,113970.0,0.11254874]
[1757582186450,1.83367338,113980.0,113970.0,0.24976543]
[1757582187250,1.83367338,113980.0,113970.0,0.13921669]
[1757582187651,1.83367338,113980.0,113970.0,0.24977652]
[1757582188446,0.89741669,113980.0,113970.0,0.24977652]
[1757582188752,1.69641669,113980.0,113970.0,0.24977652]
[1757582189052,1.5592,113980.0,113970.0,0.24977652]
[1757582189252,0.0376,113980.0,113970.0,0.51921669]
[1757582189450,0.8346,113980.0,113970.0,0.51921669]
[1757582189652,0.83400091,113980.0,113970.0,0.54699535]
[1757582189945,0.03500091,113980.0,113970.0,1.00193104]
[1757582190146,0.83400091,113980.0,113970.0,1.23145626]
[1757582190355,0.83400091,113980.0,113970.0,0.73652057]
[1757582190552,0.9712176,113980.0,113970.0,0.4681848]
[1757582190851,1.3320176,113980.0,113970.0,0.4681848]
[1757582192352,1.3320176,113980.0,113970.0,0.38921669]
[1757582192855,1.3320176,113980.0,113970.0,0.48921669]
[1757582193051,1.3320176,113980.0,113970.0,0.64699535]
[1757582193955,1.19480091,113980.0,113970.0,0.64699535]
[1757582194155,1.3320176,113980.0,113970.0,0.64699535]
[1757582194453,0.9712176,113980.0,113970.0,0.64699535]
[1757582194655,1.3320176,113980.0,113970.0,0.64699535]
[1757582194856,1.19480091,113980.0,113970.0,0.64699535]
[1757582195054,1.3320176,113980.0,113970.0,0.64699535]
[1757582195654,1.3320176,113980.0,113970.0,0.50977866]
[1757582195854,0.9712176,113980.0,113970.0,0.64699535]
[1757582196054,1.3320176,113980.0,113970.0,0.64699535]
[1757582196255,1.3320176,113980.0,113970.0,0.48921669]
[1757582196458,1.3320176,113980.0,113970.0,0.352]
[1757582196756,1.3320176,113980.0,113970.0,0.48921669]
[1757582196953,0.9712176,113980.0,113970.0,0.48921669]
[1757582197752,0.1722176,113980.0,113970.0,0.252]
[1757582197958,0.83388091,113980.0,113970.0,0.99921669]
[1757582198559,0.83388091,113980.0,113970.0,1.15699535]
[1757582198859,0.83388091,113980.0,113970.0,1.24470715]
[1757582199160,0.83388091,113980.0,113970.0,1.60550715]
[1757582199358,0.83388091,113980.0,113970.0,1.35550715]
[1757582199561,0.02074223,113980.0,113970.0,1.74272384]
[1757582199763,0.81962223,113980.0,113970.0,1.74272384]
[1757582199968,0.81962223,113980.0,113970.0,1.46829046]
[1757582200265,0.81962223,113980.0,113970.0,1.74272384]
[1757582200564,0.02074223,113980.0,113970.0,1.74272384]
[1757582200764,0.00478189,113980.0,113970.0,1.74272384]
[1757582201561,0.00478189,113980.0,113970.0,1.46829046]
[1757582201762,0.00478189,113980.0,113970.0,1.57867175]
[1757582201963,0.00478189,113980.0,113970.0,1.69532647]
[1757582202658,0.00478189,113980.0,113970.0,1.58494518]
[1757582204371,0.00478189,113980.0,113970.0,1.74272384]
[1757582206669,0.00478189,113980.0,113970.0,1.58494518]
[1757582207173,0.00478189,113980.0,113970.0,2.38370518]
[1757582208770,0.00113314,113980.0,113970.0,2.38370518]
[1757582209570,0.01263,113990.0,113980.0,0.0877041]
[1757582209771,0.39549,113990.0,113980.0,1.07963472]
[1757582209971,0.39549,113990.0,113980.0,1.44043472]
[1757582210568,0.39549,113990.0,113980.0,1.07963472]
[1757582210770,0.39649,113990.0,113980.0,1.44143472]
[1757582210967,0.39649,113990.0,113980.0,1.08063472]
[1757582211971,0.39749,113990.0,113980.0,1.08163472]
[1757582212474,0.39749,113990.0,113980.0,0.80720134]
[1757582212676,0.03569,113990.0,113980.0,1.08164182]
[1757582213068,0.39749,113990.0,113980.0,1.08164182]
[1757582213873,0.39749,113990.0,113980.0,0.80720844]
[1757582214073,0.39749,113990.0,113980.0,1.08164182]
[1757582214574,0.39749,113990.0,113980.0,0.80720844]
[1757582214775,0.39749,113990.0,113980.0,1.08164182]
[1757582216375,0.39749,113990.0,113980.0,1.19191584]
[1757582216571,0.39749,113990.0,113980.0,0.91748246]
[1757582216776,0.39749,113990.0,113980.0,1.19191584]
[1757582217070,0.39749,113990.0,113980.0,1.0344186]
[1757582218378,0.39749,113990.0,113980.0,0.75998522]
[1757582218575,0.39749,113990.0,113980.0,1.0344186]
[1757582219576,0.39749,113990.0,113980.0,1.12078522]
[1757582219777,0.39749,113990.0,113980.0,1.3952186]
[1757582220475,0.39749,113990.0,113980.0,1.28494458]
[1757582221571,0.39749,113990.0,113980.0,1.29368036]
[1757582221766,0.39749,113990.0,113980.0,1.4511776]
[1757582222378,0.38323302,113990.0,113980.0,1.4511776]
[1757582222578,0.39697302,113990.0,113980.0,1.4511776]
[1757582224880,0.39697302,113990.0,113980.0,1.29368036]
[1757582225382,0.39697302,113990.0,113980.0,1.01924698]
[1757582225582,0.39697302,113990.0,113980.0,1.29368036]
[1757582227577,0.01574,113990.0,113980.0,1.43089705]
[1757582227789,0.00374304,113990.0,113980.0,1.43089705]
[1757582228174,0.00374304,113990.0,113980.0,1.58839429]
[1757582229083,0.00374304,113990.0,113980.0,1.43089705]
[1757582229782,0.00374304,113990.0,113980.0,1.29368036]
[1757582230677,0.00374304,113990.0,113980.0,1.01924698]
[1757582230877,0.00374304,113990.0,113980.0,1.43089705]
[1757582231177,0.00374304,113990.0,113980.0,1.29368036]
[1757582231382,0.00374304,113990.0,113980.0,1.43089705]
[1757582232180,0.00374304,113990.0,113980.0,2.22941705]
[1757582232383,0.38328,113990.0,113980.0,1.19723338]
[1757582232583,0.17243669,113990.0,113980.0,1.19723338]
[1757582232881,0.53423669,113990.0,113980.0,1.06001669]
[1757582233071,0.39702,113990.0,113980.0,1.06001669]
[1757582233275,0.53423669,113990.0,113980.0,1.19723338]
[1757582234383,0.39702,113990.0,113980.0,1.19723338]
[1757582235774,0.23119947,113990.0,113980.0,1.35506601]
[1757582235979,0.24493947,113990.0,113980.0,1.35506601]
[1757582236283,0.24493947,113990.0,113980.0,1.17207604]
[1757582236586,0.24493947,113990.0,113980.0,1.08063263]
[1757582236780,0.24493947,113990.0,113980.0,1.17207604]
[1757582237986,0.24493947,113990.0,113980.0,1.26351945]
[1757582240186,0.24493947,113990.0,113980.0,1.08063263]
[1757582240480,0.24493947,113990.0,113980.0,1.26351945]
[1757582240886,0.24493947,113990.0,113980.0,1.08063263]
[1757582241087,0.24493947,113990.0,113980.0,1.26351945]
[1757582242483,0.23068242,113990.0,113980.0,1.26351945]
[1757582242683,0.01374,113990.0,113980.0,1.26351945]
[1757582242884,0.01374,113990.0,113980.0,1.17207604]
[1757582243188,0.23068242,113990.0,113980.0,1.17207604]
[1757582243382,0.23068242,113990.0,113980.0,1.26351945]
[1757582243887,0.23068242,113990.0,113980.0,1.10568682]
[1757582244191,0.23068242,113990.0,113980.0,1.19339772]
[1757582252188,0.23068242,113990.0,113980.0,1.35126586]
[1757582254793,0.23068242,113990.0,113980.0,1.46177343]
[1757582255397,0.23068242,113990.0,113980.0,1.30390529]
[1757582257797,0.23068242,113990.0,113980.0,1.19339772]
[1757582258597,0.23068242,113990.0,113980.0,1.35126586]
[1757582260305,0.23068242,113990.0,113980.0,1.19339772]
[1757582262807,0.23068242,113990.0,113980.0,1.35128031]
[1757582263398,0.23068242,113990.0,113980.0,1.19339772]
[1757582266909,0.23068242,113990.0,113980.0,1.39852727]
[1757582267610,0.23068242,113990.0,113980.0,1.55633024]
[1757582268020,0.23068242,113990.0,113980.0,1.35120069]
[1757582270306,0.23068242,113990.0,113980.0,1.46164164]
[1757582270815,0.23068242,113990.0,113980.0,1.30383867]
[1757582271411,0.23068242,113990.0,113980.0,2.10199867]
[1757582272704,0.01374,113990.0,113980.0,2.01055526]
[1757582272908,0.01374,113990.0,113980.0,1.91911185]
[1757582273106,0.23068242,113990.0,113980.0,1.30383867]
[1757582273306,0.23068242,113990.0,113980.0,1.03324095]
[1757582273605,0.25390242,113990.0,113980.0,1.01424341]
[1757582274209,0.25390242,113990.0,113980.0,1.17204638]
[1757582275013,0.25390242,113990.0,113980.0,1.26348979]
[1757582276015,0.25390242,113990.0,113980.0,1.08060297]
[1757582276216,0.25390242,113990.0,113980.0,1.26348979]
[1757582277110,0.25390242,113990.0,113980.0,1.35120099]
[1757582278815,0.25390242,113990.0,113980.0,1.26348979]
[1757582279016,0.25390242,113990.0,113980.0,1.35120109]
[1757582279617,0.23068242,113990.0,113980.0,1.35120109]
[1757582279912,0.23068242,113990.0,113980.0,1.4426445]
[1757582280118,0.07083297,114000.0,113990.0,0.0877036]
[1757582280316,0.28777539,114000.0,113990.0,1.98947042]
[1757582280516,0.01263,114000.0,113990.0,2.23947042]
[1757582280714,0.01263,114000.0,113990.0,2.33091383]
[1757582280913,0.01263,114000.0,113990.0,2.23947042]
[1757582281316,0.01263,114000.0,113990.0,2.53604338]
[1757582281618,0.01263,114000.0,113990.0,2.62376652]
[1757582282018,0.01363,114000.0,113990.0,2.62476652]
[1757582282818,0.01363,114000.0,113990.0,2.62776652]
[1757582283024,0.01463,114000.0,113990.0,2.75954564]
[1757582283622,0.01463,114000.0,113990.0,2.76154564]
[1757582284023,0.01463,114000.0,113990.0,2.67010223]
[1757582284319,0.0011371,114000.0,113990.0,2.67010223]
[1757582284923,0.0011371,114000.0,113990.0,2.76154564]
[1757582285429,0.0011371,114000.0,113990.0,2.67010223]
[1757582285826,0.0011371,114000.0,113990.0,2.48721541]
[1757582286227,0.0011371,114000.0,113990.0,2.67010223]
[1757582286724,0.0011371,114000.0,113990.0,2.48721541]
[1757582286925,0.0011371,114000.0,113990.0,2.67010223]
[1757582287118,0.0138371,114000.0,113990.0,2.67010223]
[1757582287922,0.0138371,114000.0,113990.0,1.87202223]
[1757582288129,0.0138371,114000.0,113990.0,2.66998223]
[1757582291330,0.0138371,114000.0,113990.0,1.87202223]
[1757582291529,0.0138371,114000.0,113990.0,1.68913541]
[1757582291734,0.0138371,114000.0,113990.0,2.49578541]
[1757582292028,0.0138371,114000.0,113990.0,2.67867223]
[1757582293126,0.0138371,114000.0,113990.0,2.58722882]
[1757582293328,0.0138371,114000.0,113990.0,2.67867223]
[1757582296431,0.0138371,114000.0,113990.0,2.90702535]
[1757582297733,0.23077952,114000.0,113990.0,2.90702535]
[1757582298927,0.23077952,114000.0,113990.0,2.76994537]
[1757582302430,0.23077952,114000.0,113990.0,2.92730089]
[1757582302835,0.0138371,114000.0,113990.0,2.92730089]
[1757582303134,0.23077952,114000.0,113990.0,2.72217134]
[1757582304034,0.23077952,114000.0,113990.0,2.56481582]
[1757582304431,0.23077952,114000.0,113990.0,2.85929992]
[1757582306837,0.23077952,114000.0,113990.0,2.7018958]
[1757582307037,0.23077952,114000.0,113990.0,2.72231553]
[1757582307339,0.23077952,114000.0,113990.0,2.72219553]
[1757582307839,0.23077952,114000.0,113990.0,1.58671239]
[1757582308036,0.23077952,114000.0,113990.0,2.38447239]
[1757582308634,0.23077952,114000.0,113990.0,1.95281272]
[1757582308834,0.23077952,114000.0,113990.0,2.22697268]
[1757582309234,0.23077952,114000.0,113990.0,1.95281272]
[1757582309435,0.23077952,114000.0,113990.0,2.22697268]
[1757582310041,0.23077952,114000.0,113990.0,1.95281272]
[1757582310241,0.23077952,114000.0,113990.0,2.22697268]
[1757582310441,0.23077952,114000.0,113990.0,2.43210223]
[1757582311543,0.23077952,114000.0,113990.0,2.22697268]
[1757582312245,0.23077952,114000.0,113990.0,2.15798132]
[1757582312439,0.23077952,114000.0,113990.0,2.43214128]
[1757582314640,0.23077952,114000.0,113990.0,2.15798132]
[1757582315143,0.23077952,114000.0,113990.0,2.43214128]
[1757582315344,0.23077952,114000.0,113990.0,2.58995736]
[1757582315948,0.23077952,114000.0,113990.0,2.38478876]
[1757582316245,0.23077952,114000.0,113990.0,2.1106288]
[1757582316448,0.23077952,114000.0,113990.0,2.38478876]
[1757582317051,0.23077952,114000.0,113990.0,2.22697268]
[1757582317250,0.23077952,114000.0,113990.0,2.43214128]
[1757582317850,0.23077952,114000.0,113990.0,2.58996163]
[1757582318146,0.23077952,114000.0,113990.0,2.31580167]
[1757582318347,0.23077952,114000.0,113990.0,2.38479303]
[1757582318647,1.28087706,114000.0,113990.0,0.09026863]
[1757582318847,0.03395,113980.0,113970.0,0.15782035]
[1757582319149,0.19149558,113980.0,113970.0,0.29490033]
[1757582319347,1.56357805,113980.0,113970.0,0.15782035]
[1757582319550,0.01267,113970.0,113960.0,0.36344858]
[1757582319744,0.78182998,113970.0,113960.0,0.7663686]
[1757582319950,0.78182998,113970.0,113960.0,0.83535996]
[1757582320146,0.64475,113970.0,113960.0,0.5612]
[1757582320354,0.39475,113970.0,113960.0,0.83535996]
[1757582320551,0.53182998,113970.0,113960.0,0.69827998]
[1757582320849,0.02228,113970.0,113960.0,0.85159996]
[1757582321051,0.02228,113970.0,113960.0,1.30012666]
[1757582322053,0.02228,113970.0,113960.0,2.10436666]
[1757582323550,0.02328,113970.0,113960.0,2.10636666]
[1757582323954,0.002,113970.0,113960.0,2.10636666]
[1757582324154,0.002,113970.0,113960.0,1.8322067]
[1757582324454,0.002,113970.0,113960.0,2.10636666]
[1757582326762,0.002,113970.0,113960.0,2.21631554]
[1757582329563,0.002,113970.0,113960.0,2.60339552]
[1757582330066,0.002,113970.0,113960.0,2.49344664]
[1757582330867,0.002,113970.0,113960.0,2.60336597]
[1757582331064,0.002,113970.0,113960.0,2.6911122]
[1757582331467,0.002,113970.0,113960.0,2.58119287]
[1757582333569,0.002,113970.0,113960.0,2.44411289]
[1757582333971,0.002,113970.0,113960.0,2.60193324]
[1757582334774,0.002,113970.0,113960.0,2.44411289]
[1757582335070,0.002,113970.0,113960.0,2.58019287]
[1757582335671,0.002,113970.0,113960.0,2.73801322]
[1757582335872,0.002,113970.0,113960.0,1.93377322]
[1757582336069,0.002,113970.0,113960.0,2.60001324]
[1757582336269,0.002,113970.0,113960.0,2.73709322]
[1757582340177,0.0216,114000.0,113990.0,0.1224034]
[1757582340475,0.0216,114000.0,113990.0,1.13028338]
[1757582341175,0.03426,114000.0,113990.0,1.13028338]
[1757582341571,0.03426,114000.0,113990.0,0.89213]
[1757582341771,0.03726,114000.0,113990.0,1.03120998]
[1757582342071,0.17433998,114000.0,113990.0,1.03120998]
[1757582343176,0.17433998,114000.0,113990.0,1.11891338]
[1757582343678,0.03726,114000.0,113990.0,1.11891338]
[1757582343879,0.17433998,114000.0,113990.0,1.11891338]
[1757582344075,0.17433998,114000.0,113990.0,0.9818334]
[1757582344279,0.17433998,114000.0,113990.0,0.89413]
[1757582344481,0.17433998,114000.0,113990.0,1.03120998]
[1757582344781,0.17433998,114000.0,113990.0,1.11891458]
[1757582345677,0.17433998,114000.0,113990.0,1.2289472]
[1757582345873,0.03726,114000.0,113990.0,1.2289472]
[1757582346077,0.17433998,114000.0,113990.0,1.09186722]
[1757582346274,0.17433998,114000.0,113990.0,1.2289472]
[1757582346473,0.17433998,114000.0,113990.0,1.1412426]
[1757582346676,1.4519,114000.0,113990.0,0.11203262]
[1757582346880,1.72605996,114000.0,113990.0,0.002]
[1757582347281,1.4519,114000.0,113990.0,0.002]
[1757582347482,1.72605996,114000.0,113990.0,0.002]
[1757582352782,1.4519,114000.0,113990.0,0.002]
[1757582353093,0.64806,114000.0,113990.0,0.002]
[1757582353291,1.72585996,114000.0,113990.0,0.002]
[1757582353791,1.72585996,114000.0,113990.0,0.02333]
[1757582354092,0.92221996,114000.0,113990.0,0.02333]
[1757582354293,0.64806,114000.0,113990.0,0.16040998]
[1757582354488,1.72601996,114000.0,113990.0,0.13336262]
[1757582356094,1.45186,114000.0,113990.0,0.13336262]
[1757582356293,1.54330386,114000.0,113990.0,0.13336262]
[1757582356693,1.45186,114000.0,113990.0,0.13336262]
[1757582356889,1.54330386,114000.0,113990.0,0.13336262]
[1757582359792,1.54294386,114000.0,113990.0,0.13336262]
[1757582361198,1.54294386,114000.0,113990.0,0.14210262]
[1757582361401,1.63438772,114000.0,113990.0,0.12077262]
[1757582361697,1.4515,114000.0,113990.0,0.12077262]
[1757582361899,1.54294386,114000.0,113990.0,0.12077262]
[1757582362396,1.63438772,114000.0,113990.0,0.01074]
[1757582364401,1.63438772,114000.0,113990.0,0.12077262]
[1757582364791,1.4515,114000.0,113990.0,0.01074]
[1757582365291,1.63438772,114000.0,113990.0,0.12077262]
[1757582365896,1.66833772,114000.0,113990.0,0.12077262]
[1757582366501,1.66821772,114000.0,113990.0,0.12077262]